Cogmind - Beta 15 @@@ ROGUE MODE // 2025.10.09 @ 19:58:15 Player: Maxikiosco Result: Destroyed by as-26261 with Assembled F-torch Performance ------------- Evolutions (0) 0 Regions Visited (2) 400 Robots Destroyed (14) 70 Value Destroyed (253) 253 Prototype IDs (2) 40 Alien Tech Used (0) 0 Bonus (0) 0 TOTAL SCORE: 763 Bonus ------- None Cogmind --------- Core Integrity 0/250 Matter 379/450 Energy 240/240 System Corruption 0% Temperature Cool (20) Movement Walking (190) Ox1 Location -10/Mines Parts ------- > --- POWER (1) -------- Nuclear Core > --- PROPULSION (2) --- Aluminum Leg > --- UTILITY (2) ------ Small Storage Unit Compact Matter Pod > --- WEAPON (2) ------- Assault Rifle Assault Rifle > --- INVENTORY (8) ---- Light Deuterium Engine Aluminum Leg Aluminum Leg Large Storage Unit Light Armor Plating Improved Light Armor Plating Light Assault Rifle Mining Claw Peak State ------------ > --- POWER ------------ Nuclear Core > --- PROPULSION ------- Aluminum Leg Aluminum Leg > --- UTILITY ---------- Small Storage Unit Compact Matter Pod > --- WEAPON ----------- Assault Rifle Assault Rifle > --- INVENTORY -------- Light Deuterium Engine Aluminum Leg Aluminum Leg Large Storage Unit Light Armor Plating Light Armor Plating Light Assault Rifle Mining Claw [Rating: 12] Favorites ----------- Power Light Ion Engine Engine Light Ion Engine Power Core Nuclear Core Propulsion Aluminum Leg Leg Aluminum Leg Utility Small Storage Unit Device Improved Terrain Scanner Storage Small Storage Unit Weapon Assault Rifle Energy Gun Particle Gun Ballistic Gun Assault Rifle Build | -11 -10 -10 ------- Run | Yrd Mat Min Slots Evolved . | . . . Power . | . . . Propulsion . | . . . Utility . | . . . Weapon . | . . . Parts Attached 19 | 7 10 2 Power 3 | 1 1 1 Engine 2 | 1 1 . Core 1 | . . 1 Reactor . | . . . Propulsion 4 | 2 2 . Treads . | . . . Leg 4 | 2 2 . Wheel . | . . . Hover . | . . . Flight . | . . . Utility 6 | 2 3 1 Device 2 | 1 1 . Storage 4 | 1 2 1 Processor . | . . . Hackware . | . . . Protection . | . . . Artifact . | . . . Weapon 6 | 2 4 . Energy Gun 2 | . 2 . Energy Cannon . | . . . Ballistic Gun 4 | 2 2 . Ballistic Cannon . | . . . Launcher . | . . . Special Weapon . | . . . Impact Weapon . | . . . Slashing Weapon . | . . . Piercing Weapon . | . . . Special Melee Weapon . | . . . Unidentified Prototypes . | . . . Parts Lost 3 | . 2 1 Power 1 | . 1 . Propulsion 1 | . . 1 Utility 1 | . 1 . Weapon . | . . . Highest Loss Streak 2 | . 2 1 To Critical Strikes . | . . . Average Backups 6 | 1 6 7 Power . | . . . Propulsion 1 | . 2 2 Utility 2 | . 2 3 Weapon 1 | . . 1 Tool/Special . | . . . Unused Backups 10 | . . 10 Power 2 | . . 2 Propulsion 3 | . . 3 Utility 3 | . . 3 Weapon 2 | . . 2 Tool/Special . | . . . Average Slot Usage (%) 99 | . 98 99 Engine 10 | . 13 5 Core 2 | . . 8 Leg 27 | . 28 27 Device 3 | . 5 . Storage 23 | . 21 28 Energy Gun 3 | . 4 . Ballistic Gun 24 | . 23 28 Peak Build Rating 12 | 9 11 12 Average Rating 8 | 5 8 10 On Entrance 5 | . 9 8 Naked Turns . | . . . Heaviest Build 29 | 14 29 19 Greatest Support 20 | 20 20 20 Greatest Overweight (x) 1 | . 1 1 Average Overweight (x) . | . . . Largest Inventory Capacity 15 | 8 15 8 Average Capacity 7 | 7 8 8 Most Carried 8 | 3 8 8 Average Carried 6 | 1 6 7 Final Capacity 8 | 8 8 8 Final Carried 8 | 2 8 8 Class Distribution -------------------- 100% | Mutant Dominant Class ---------------- Mutant | -10/Materials Mutant | -10/Mines Resources | -11 -10 -10 ----------- Run | Yrd Mat Min Matter Collected 744 | 303 313 128 Remotely . | . . . Salvage Created 472 | 98 336 38 Parts 27 | 6 14 7 Haulers Intercepted 1 | . 1 . Recyclers Shooed . | . . . Parts Field Recycled . | . . . Retrieved Matter . | . . . Parts Self-Destructed . | . . . Prevented . | . . . Kills | -11 -10 -10 ------- Run | Yrd Mat Min Combat Hostiles Destroyed 10 | . 7 3 Guns 10 | . 7 3 Classes Destroyed 5 | 2 3 . Tunneler 1 | 1 . . Hauler 1 | . 1 . Recycler 2 | 1 1 . Swarmer 6 | . 3 3 Grunt 4 | . 4 . Best Kill Streak 4 | 1 4 3 Combat Bots Only 3 | . 3 3 Max Kills in Single Turn 1 | 1 1 1 Gunslinging . | . . . Exploded . | . . . Melee . | . . . Uniques/NPCs Destroyed . | . . . Combat | -11 -10 -10 -------- Run | Yrd Mat Min Hostile Shots Fired 85 | . 57 28 Missed 18 | . 11 7 Hits 67 | . 46 21 Melee 3 | . . 3 Projectile 64 | . 46 18 Critical Strikes 1 | . . 1 Damage Taken 821 | . 547 274 Core 251 | . 163 88 Absorbed by Shields . | . . . Core Remaining (%) 100 | 100 . . Volleys Fired 47 | 10 31 6 Largest 2 | 2 2 2 Hottest 115 | 40 115 40 Shots Fired 94 | 20 62 12 Gun 94 | 20 62 12 Cannon . | . . . Launcher . | . . . Special . | . . . Kinetic 66 | 20 34 12 Thermal 28 | . 28 . Explosive . | . . . Electromagnetic . | . . . Robot Hit Streak 12 | 2 12 3 Robot Miss Streak 3 | 2 3 2 Penetration Max . | . . . Secondary Targets 2 | . 1 1 Max Gunslinging Chain 1 | . 1 1 Shots Hit Robots 59 | 10 42 7 Core Hits 23 | 3 16 4 Critical Kills . | . . . Critical Parts Destroyed . | . . . Critical Strikes 2 | . 2 . Burn 2 | . 2 . Melee Attacks . | . . . Impact . | . . . Slashing . | . . . Piercing . | . . . Sneak Attacks . | . . . Combat Hostiles . | . . . Follow-up Attacks . | . . . Damage Inflicted 832 | 125 608 99 Guns 731 | 125 507 99 Cannons . | . . . Explosions 101 | . 101 . Melee . | . . . Ramming . | . . . Kinetic 527 | 125 303 99 Thermal 204 | . 204 . Explosive 101 | . 101 . Electromagnetic . | . . . Impact . | . . . Slashing . | . . . Piercing . | . . . Highest Corruption . | . . . Average Corruption . | . . . Corruption Purged . | . . . Corruption Blocked . | . . . Overload Shots . | . . . Overflow Damage 105 | . 105 . Projectiles . | . . . Explosions 105 | . 105 . Melee . | . . . Knockbacks . | . . . Impact . | . . . Kinetic . | . . . Secondary . | . . . Self-Inflicted Damage 114 | . 114 . Shots 1 | . 1 . Rammed . | . . . Targets Rammed . | . . . Kicked . | . . . Crushed . | . . . Highest Temperature 163 | . 163 42 Average Temperature 54 | . 56 19 Received Heat Transfer 202 | . 102 100 Siege Activations . | . . . Martial Activations . | . . . Shielding Activations . | . . . Robots Disrupted . | . . . Combat Hostiles . | . . . Robots Corrupted . | . . . Combat Hostiles . | . . . Parts Fried . | . . . Impact Corruptions . | . . . Robots Melted . | . . . Combat Hostiles . | . . . Parts Melted . | . . . Heat Transferred 703 | . 703 . Parts Sabotaged . | . . . Parts Stolen . | . . . Parts Stripped . | . . . Power Chain Reactions . | . . . Alert | -11 -10 -10 ------- Run | Yrd Mat Min Maximum Alert Level . | . . . Low Security (%) 100 | 100 100 100 Level 1 . | . . . Level 2 . | . . . Level 3 . | . . . Level 4 . | . . . Level 5 . | . . . High Security . | . . . Max Security . | . . . Peak Influence 103 | 5 103 73 Initial 13 | . . 13 Average 33 | . 51 18 Influence Increases 348 | 10 268 70 Destroy 0b10 Robot/C 200 | . 140 60 Destroy 0b10 Robot/NC 20 | 10 10 . Destroy Leader 42 | . 32 10 Successful Hack 5 | . 5 . Disable Machine 15 | . 15 . Destroy Structure 21 | . 21 . Lose Combat Pursuer 45 | . 45 . Influence Decreases 348 | 10 232 106 Entered New Map 23 | . . 23 Time Decay 305 | 10 212 83 Lost Part 20 | . 20 . Squads Dispatched 1 | . . 1 Investigation 1 | . . 1 Extermination . | . . . Reinforcement . | . . . Assault . | . . . Garrison . | . . . Intercept . | . . . Searches Triggered . | . . . Construction Impeded . | . . . Haulers Reinforced . | . . . Active Scanning Responses . | . . . Cargo Convoy Interrupts . | . . . Stealth | -11 -10 -10 --------- Run | Yrd Mat Min Distress Signals 1 | . 1 . Communications Jammed . | . . . Distress Signals . | . . . Times Spotted 31 | . 14 17 Peak Tracking Total 14 | . 4 14 Tactical Retreats 5 | . 3 2 Traps | -11 -10 -10 ------- Run | Yrd Mat Min Traps Triggered . | . . . Indirectly . | . . . Trap Hack Attempts . | . . . Triggered . | . . . Disarmed . | . . . Reprogrammed . | . . . Reused . | . . . Traps Extracted . | . . . Installed . | . . . Triggered . | . . . Machines | -11 -10 -10 ---------- Run | Yrd Mat Min Machines Disabled 1 | . 1 . Max in Single Turn 1 | . 1 . Machines Repaired . | . . . Machines Dismantled . | . . . Machines Sabotaged . | . . . Overloaded Fab Kills . | . . . Hacking | -11 -10 -10 --------- Run | Yrd Mat Min Machines Accessed 4 | . 3 1 Terminals 3 | . 3 . Fabricators . | . . . Repair Stations . | . . . Recycling Units . | . . . Scanalyzers . | . . . Garrison Access . | . . . Total Hacks 11 | . 10 1 Successful 4 | . 3 1 Failed 7 | . 7 . Catastrophic 2 | . 2 . Database Lockouts . | . . . Manual . | . . . Terminals 10 | . 10 . Fabricators . | . . . Repair Stations . | . . . Recycling Units . | . . . Scanalyzers . | . . . Garrison Access . | . . . Terminal Hacks 4 | . 3 1 Prototype ID Bank 1 | . 1 . Open Door 1 | . . 1 Alert Level 1 | . 1 . Locate Traps 1 | . 1 . Fabricator Hacks . | . . . Repair Station Hacks . | . . . Recycling Unit Hacks . | . . . Scanalyzer . | . . . Garrison Access Hacks . | . . . Unauthorized Hacks . | . . . Terminals . | . . . Fabricators . | . . . Repair Stations . | . . . Recycling Units . | . . . Scanalyzers . | . . . Garrison Access . | . . . Data Cores Recovered . | . . . Used . | . . . Hacking Detections 2 | . 2 . Full Trace Events 1 | . 1 . Feedback Events . | . . . Feedback Blocked . | . . . Robot Schematics Acquired . | . . . Robots Built . | . . . Authchips . | . . . Time . | . . . Total Robot Build Rating . | . . . Part Schematics Acquired . | . . . Parts Built . | . . . Authchips . | . . . Time . | . . . Total Part Build Rating . | . . . Parts Repaired . | . . . Time . | . . . Parts Recycled . | . . . Recycled Matter . | . . . Retrieved Matter . | . . . Retrieved Components . | . . . Parts Scanalyzed . | . . . Part Schematics Acquired . | . . . Parts Damaged . | . . . Bothacking | -11 -10 -10 ------------ Run | Yrd Mat Min Used RIF Installer . | . . . Robots Hacked . | . . . Non-combat . | . . . Combat . | . . . Robot Hacks Applied . | . . . Relay Couplers Released . | . . . Fabnet Peak Effective % . | . . . Robots Rewired . | . . . Allies Hacked . | . . . Hacks Repelled . | . . . Allies | -11 -10 -10 -------- Run | Yrd Mat Min Total Allies . | . . . Largest Group . | . . . Highest-Rated Group . | . . . Highest-Rated Ally . | . . . Total Orders . | . . . Ally Attacks . | . . . Total Damage . | . . . Kills . | . . . Allies Corrupted . | . . . Allies Melted . | . . . Intel | -11 -10 -10 ------- Run | Yrd Mat Min Active Infowar (turns) 191 | 40 151 . Terrain 191 | 40 151 . Robot Analysis Total . | . . . Derelict Logs Recovered 1 | . . 1 Drone Launches . | . . . Drone Recoveries . | . . . Exploration | -11 -10 -10 ------------- Run | Yrd Mat Min Turns Passed 1043 | 155 577 311 Spaces Moved 662 | 97 339 226 Core 12 | 12 . . Treads . | . . . Legs 650 | 85 339 226 Wheels . | . . . Hover . | . . . Flight . | . . . Fastest Speed 50 | 50 120 120 Average Speed 119 | 111 120 121 Slowest Speed 190 | 120 190 190 Overloaded Moves . | . . . Propulsion Burnouts . | . . . Robots Hopped . | . . . Potential Cave-ins . | . . . Cave-ins Triggered . | . . . Exploration Rate (%) 41 | 4 62 59 Regions Visited 2 Branch Regions 1 Pre-discovered Areas . | . . . Known Exits Taken . | . . . Unknown Exits Taken 2 | 1 1 . Scrap Searched . | . . . Spaces Dug . | . . . Terrain Destroyed 20 | . 20 . Melee . | . . . Projectile . | . . . AOE 20 | . 20 . Terrain Rammed . | . . . Walls Destroyed . | . . . Machines Disabled . | . . . Actions | -11 -10 -10 --------- Run | Yrd Mat Min Total 823 | 123 447 253 Wait 63 | 6 46 11 Move 660 | 96 338 226 Hop . | . . . Pick Up 17 | 4 10 3 Fast Attach 7 | 5 1 1 Attach 5 | 2 3 . Detach 1 | . 1 . Swap 11 | . 10 1 Drop 12 | . 7 5 Fire 47 | 10 31 6 Melee . | . . . Ram . | . . . Kick . | . . . Crush . | . . . Escape Stasis . | . . . Rewire . | . . . Trap . | . . . Miscellaneous . | . . . Route ------- -11/Scrapyard -10/Materials (discovered 3 exits: [*Mat] / *Min x2) -10/Mines History --------- Turn | Location | Event 36 | -11/Scrapyard | Discovered new exit (range 15) 156 | -11/Scrapyard | Entered Materials 190 | -10/Materials | Discovered new exit (range 16) 336 | -10/Materials | Build established: Mutant 471 | -10/Materials | Core integrity fell below 50% 591 | -10/Materials | Discovered new exit (range 12) 624 | -10/Materials | Discovered new exit (range 13) 733 | -10/Materials | Entered Mines 850 | -10/Mines | Met a Derelict shopkeep closing up shop 906 | -10/Mines | Found a hidden stash of uninstalled traps 1007 | -10/Mines | Assembled infested the area 1027 | -10/Mines | Core integrity fell below 20% 1044 | -10/Mines | Destroyed by as-26261 with Assembled F-torch Last Messages --------------- Dropped Lgt. Armor Plating. Acquired Imp. Light Armor Plating. R-06 Scavenger collects Lgt. Ion Engine. A stash of uninstalled traps is collected here! Acquired derelict log, extracted data. Data stored: Storage entrances (x1). T-07 Excavator is excavating. ALERT: Infestation in the mines, dispatching Demolisher response squad. YI-UF0 mumbles something. as-61763 destroyed. YI-UF0: "WHAAM!" as-73023 destroyed. as-54148 destroyed. as-82737 destroyed. K-01 Serf collects debris. Aluminum Leg destroyed. Critical hit (Burn: +80). K-01 Serf collects debris. Core Extractor disabled. Map ----- +----------------------------------------------------+ | ?????????????????????????????????????????????????? | | ?????????????????????????????????????????????????? | | ?????????????####????????????????????????????????? | | ????????????## ##??????????????# ??????????????? | | ????????????# ##??????????? #?????????? ? | | ????????????# ##????????# #??###?## | | ????????##### #????????# ## ## % | | ????????# #???????# | | ????????# #????????? | | ????????# ##### ##????????? | | ????????#?????# #?????????? | | ??????????????# #???????????# | | ?????????????## #????????????# | | ?????????????# ##????????????# | | ?????????????# ##?????????????# | | ?????????????# ##?????????????# | | ?????????????## ##???????####### # | | ??????????????## ##??????# |! #? | | ???????????????# #??????# #### ###? | | ??????????????## ##?????# ##### ##???????? | | ?????????????## #?????# #???####????????? | | ??????######## #?????# #???????????????? | | ?????## #?????# ##??????????????? | | ?????# ##????# #??????????????? | | ?????### ###### #??????????????? | | ???????##### ## @a ## ##??????????????? | | ???????????### #### """ aaaa##???????????????? | | ?????????????# #??## """ a #????????????????? | | ???#########?# #???## k"" ##????????????????? | | ??## ### ###### #?????????????????? | | ?## r #????????????????? | | ?# ???????????????? | | ?# #### ??????????????? | | ?## #??? ## ?????????????? | | ??# && #??? #### ## ????????????? | | ??# & & #???###??## #### ???????????? | | ??## & ##?????????## #??? ???????????? | | ???# ##???????????## #???? ##???????????? | | ???# ##?????????###########? ###????????####? | | ??## ##???######## #? ##???????### ?? | | ?## #???## #?###???????## ??? | | ?# ##?## ###### #??????????## #???? | | ?# ### ##????# #??????????# #????? | | ?## ####?????# #??????????# #????? | | ??# ##??????### ##########?# = ##???? | | ??## #### ##???????# ## ###=[ #???? | | ???#####??# #???????## ## """ * ##???? | | ?????????## #???????# ### """ # ##=##????? | | ??????#### #???????# """ # ## ###???? | | ??????# ##???????## ## # ## #??## | +----------------------------------------------------+ Best States ------------- Heat Dissipation 39 Energy Generation 14 Energy Capacity 250 Matter Stores 423 Matter Capacity 450 Sight Range 16 Terrain Scan Range 16 Terrain Scan Density 10 Evasion (%) 55 Item Schematics ----------------- None Robot Schematics ------------------ None Fabricated ------------ Nothing Repaired ---------- Nothing Alien Tech Used ----------------- None Achievements -------------- None Challenges ------------ None Game ------ Seed SalvageFrostAutocannon Manual? 0 Play Time 00:21:26 Cumulative 7.2 hours Start 2025.10.09 @ 19:35:58 End 2025.10.09 @ 19:58:15 Sessions 1 Manual Loads 0 Difficulty Rogue Special Mode None Game No. 10 Rogue 7 Adventurer 3 Explorer 0 Win Type - Total 0 Types 0/0/0/0/0/0/0/0/0/0 Lore% 6 Gallery% 11 Achievement% 12 Wizard Run 0 Options --------- Layout 1 ASCII 0 Keyboard 0 Movement Numpad Keybinds 0 Fullscreen 1 Font 24/Smallcaps Map View 50x35 Zoom Use 0% Tactical HUD 0 Map Filters NONE Filters NONE Steam 1 RUN: acb20e75-80ff-4361-a138-d0ba0e8127cf